bitfinex-derivatives/quotes_SOLF0:USTF0_20250731
["timestamp","ask_amount","ask_price","bid_price","bid_amount"]
[1753986237724,3.06,176.52,176.51,3.12]
[1753986238223,8.7253,176.52,176.51,3.12]
[1753986238525,5.6652,176.53,176.51,3.12]
[1753986238823,3.09,176.53,176.51,3.12]
[1753986239320,8.7552,176.53,176.51,3.12]
[1753986239726,8.7553,176.52,176.51,3.12]
[1753986239926,3.09,176.52,176.51,3.12]
[1753986240126,3.09,176.55,176.48,3.02]
[1753986240323,8.7562,176.49,176.46,3.02]
[1753986240519,3.09,176.49,176.47,3.02]
[1753986240721,3.09,176.49,176.48,3.02]
[1753986242019,6.62806918,176.54,176.48,3.02]
[1753986242229,3.09,176.55,176.48,3.02]
[1753986242424,3.09,176.53,176.45,216.04831904]
[1753986242622,3.09,176.47,176.45,216.04831904]
[1753986243122,8.757,176.47,176.45,216.04831904]
[1753986243427,3.09,176.47,176.45,3.02]
[1753986243629,8.7571,176.47,176.45,3.02]
[1753986244429,3.09,176.47,176.46,3.02]
[1753986244928,8.7569,176.47,176.46,3.02]
[1753986245425,3.09,176.45,176.41,3.02]
[1753986245730,3.09,176.46,176.39,3.02]
[1753986245928,6.62806918,176.47,176.4,5.669]
[1753986246128,3.09,176.44,176.43,3.02]
[1753986246530,6.62806918,176.49,176.43,3.02]
[1753986246719,3.09,176.47,176.43,3.02]
[1753986246919,11.3283,176.56,176.44,3.02]
[1753986246920,3.09,176.54,176.44,3.02]
[1753986247124,3.09,176.46,176.4,3.02]
[1753986248228,5.6676,176.45,176.4,5.6691]
[1753986248432,3.09,176.44,176.43,3.02]
[1753986249128,3.09,176.5,176.4,3.02]
[1753986249334,3.09,176.5,176.43,6.62806918]
[1753986249532,3.09,176.5,176.44,3.02]
[1753986249729,3.09,176.53,176.45,6.62806918]
[1753986249930,3.09,176.53,176.48,3.02]
[1753986250133,6.62806918,176.58,176.48,3.02]
[1753986250328,3.09,176.51,176.49,3.02]
[1753986250528,6.62806918,176.56,176.5,3.02]
[1753986250736,3.09,176.54,176.51,3.02]
[1753986250939,3.09,176.54,176.52,3.02]
[1753986251233,3.09,176.6,176.54,3.02]
[1753986251437,4.0002041,176.59,176.54,3.02]
[1753986251630,380.74,176.62,176.55,3.02]
[1753986251830,3.09,176.57,176.55,3.02]
[1753986252133,380.74,176.62,176.56,3.02]
[1753986252330,6.22198078,176.65,176.44,6.62806918]
[1753986252331,4.00302031,176.61,176.6,3.02]
[1753986252528,3.09,176.68,176.6,3.02]
[1753986252731,5.6616,176.64,176.62,3.02]
[1753986252930,3.09,176.66,176.62,3.02]
[1753986253130,8.7513,176.65,176.63,3.02]
[1753986253332,3.09,176.65,176.63,3.02]
[1753986253534,11.26599682,176.7,176.63,3.02]
[1753986253731,5.6618,176.63,176.6,3.02]
[1753986253930,4.00633577,176.69,176.44,50.62806918]
[1753986253931,3.09,176.67,176.58,9.64806918]
[1753986254130,3.09,176.65,176.58,9.64806918]
[1753986254331,6.62806918,176.68,176.44,50.62806918]
[1753986254332,5.6625,176.61,176.59,3.02]
[1753986254633,5.6625,176.61,176.6,3.02]
[1753986255038,6.62806918,176.67,176.58,6.62806918]
[1753986255239,3.09,176.65,176.59,3.02]
[1753986255542,5.6624,176.61,176.57,3.02]
[1753986255933,3.09,176.63,176.57,3.02]
[1753986255934,5.6621,176.62,176.57,3.02]
[1753986256135,3.09,176.64,176.57,3.02]
[1753986256851,5.6623,176.62,176.58,6.62806918]
[1753986257035,6.62806918,176.67,176.6,3.02]
[1753986257231,5.6627,176.61,176.58,6.62806918]
[1753986257440,3.09,176.62,176.56,3.02]
[1753986257834,5.6637,176.57,176.56,3.02]
[1753986258039,8.7537,176.57,176.56,3.02]
[1753986259644,5.6637,176.57,176.56,3.02]
[1753986260843,5.6634,176.58,176.52,12.29326918]
[1753986261145,3.09,176.59,176.53,3.02]
[1753986261450,5.6635,176.58,176.53,3.02]
[1753986261636,3.09,176.62,176.55,3.02]
[1753986262950,6.62806918,176.63,176.55,3.02]
[1753986263147,3.09,176.62,176.55,3.02]
[1753986263544,5.6629,176.6,176.55,3.02]
[1753986264146,6.62806918,176.65,176.55,3.02]
[1753986264350,3.09,176.62,176.55,3.02]
[1753986264845,5.664,176.56,176.48,3.02]
[1753986265051,8.754,176.56,176.52,3.02]
[1753986265247,3.09,176.56,176.52,3.02]
[1753986265449,6.62806918,176.59,176.52,3.02]
[1753986265643,3.09,176.58,176.52,3.02]
[1753986266950,5.6647,176.54,176.53,3.02]
[1753986267350,3.09,176.56,176.5,5.6659]
[1753986267351,3.09,176.56,176.5,3.02]
[1753986267545,6.62806918,176.57,176.5,3.02]
[1753986267546,6.62806918,176.55,176.5,3.02]
[1753986267748,3.09,176.54,176.5,3.02]
[1753986267948,5.6656,176.51,176.5,3.02]
[1753986268148,3.24,176.52,176.5,3.02]
[1753986268650,5.6656,176.51,176.5,3.02]
[1753986269053,8.9056,176.51,176.5,3.02]
[1753986269554,3.24,176.51,176.5,3.02]
[1753986269758,5.6654,176.52,176.51,3.06]
[1753986270958,5.6657,176.51,176.47,3.06]
[1753986271348,8.9057,176.51,176.47,3.06]
[1753986271552,3.24,176.5,176.48,3.06]
[1753986271752,3.24,176.5,176.47,3.06]
[1753986272055,5.6654,176.52,176.46,5.667]
[1753986272255,5.6659,176.5,176.49,3.06]
[1753986272960,5.6657,176.51,176.49,3.06]
[1753986273156,3.24,176.54,176.48,3.06]
[1753986273462,5.6657,176.51,176.48,3.06]
[1753986273655,5.6657,176.51,176.47,5.6669]
[1753986273958,5.6657,176.51,176.5,3.06]
[1753986274760,3.24,176.52,176.5,3.06]
[1753986274960,3.24,176.52,176.46,12.29516918]
[1753986275263,3.24,176.54,176.47,3.06]
[1753986275467,3.24,176.52,176.45,3.06]
[1753986275756,3.24,176.5,176.45,3.06]
[1753986276060,3.24,176.46,176.45,3.06]
[1753986276253,3.24,176.48,176.45,3.06]
[1753986276454,3.24,176.47,176.46,3.06]
[1753986276956,3.24,176.5,176.46,3.06]
[1753986277153,6.62806918,176.51,176.47,3.06]
[1753986277355,3.24,176.48,176.47,3.06]
[1753986277961,8.9066,176.48,176.47,3.06]
[1753986278158,3.24,176.47,176.45,3.06]
[1753986278762,3.24,176.45,176.43,3.06]
[1753986279060,3.24,176.45,176.44,3.06]
[1753986280158,3.24,176.5,176.44,3.06]
[1753986280559,8.9073,176.46,176.42,3.06]
[1753986281052,8.9073,176.46,176.41,6.62806918]
[1753986281252,8.9073,176.46,176.44,3.06]
[1753986281460,8.9073,176.46,176.45,3.06]
[1753986283854,5.6676,176.45,176.41,5.6687]
[1753986284058,3.24,176.46,176.44,3.06]
[1753986284359,8.9074,176.46,176.44,3.06]
[1753986284556,11.329,176.55,176.41,3.06]
[1753986284557,6.62806918,176.49,176.41,3.06]
[1753986284760,3.24,176.48,176.41,3.06]
[1753986285663,6.62806918,176.47,176.41,3.06]
[1753986285967,3.24,176.44,176.39,3.06]
[1753986286159,6.62806918,176.47,176.39,3.06]
[1753986286160,3.24,176.43,176.39,3.06]
[1753986287660,6.62806918,176.47,176.39,3.06]
[1753986287861,5.6691,176.41,176.39,3.06]
[1753986288161,8.9091,176.41,176.4,3.06]
[1753986288363,8.9091,176.41,176.37,6.62806918]
[1753986288665,6.62806918,176.45,176.38,3.06]
[1753986288666,3.24,176.44,176.38,3.06]
[1753986288991,5.6694,176.39,176.38,3.06]
[1753986289166,5.6694,176.39,176.34,3.06]
[1753986289167,8.9094,176.39,176.34,3.06]
[1753986289861,3.24,176.41,176.35,6.62806918]
[1753986290164,3.24,176.43,176.37,5.6699]
[1753986290371,5.6689,176.41,176.38,3.06]
[1753986290660,3.24,176.45,176.38,3.06]
[1753986290864,3.24,176.47,176.41,3.06]
[1753986291365,3.24,176.46,176.43,3.06]
[1753986291566,3.24,176.46,176.44,3.06]
[1753986291762,3.24,176.49,176.42,4.04927685]
[1753986292063,3.24,176.44,176.43,3.06]
[1753986292264,3.24,176.43,176.36,3.06]
[1753986292464,3.24,176.43,176.37,3.06]
[1753986293057,8.909,176.41,176.38,3.06]
[1753986293259,8.909,176.41,176.39,3.06]
[1753986293568,5.668,176.44,176.41,3.06]
[1753986293770,3.24,176.45,176.41,3.06]
[1753986294165,3.24,176.45,176.42,3.06]
[1753986294368,8.9077,176.45,176.43,3.06]
[1753986294562,384.98927685,176.5,176.44,3.06]
[1753986294866,3.24,176.49,176.44,6.59546698]
[1753986295066,8.9062,176.49,176.48,3.06]
[1753986296164,3.24,176.49,176.48,3.06]
[1753986296569,6.59546698,176.54,176.49,3.06]
[1753986296570,3.24,176.54,176.49,3.06]
[1753986296772,3.24,176.53,176.49,3.06]
[1753986297463,3.24,176.53,176.48,6.59546698]
[1753986297664,3.24,176.53,176.51,3.06]
[1753986297862,3.24,176.52,176.51,3.06]
[1753986298663,8.9053,176.52,176.51,3.06]
[1753986299070,8.9053,176.52,176.49,3.15]
[1753986299262,8.9053,176.52,176.5,3.15]
[1753986299669,3.32,176.51,176.5,3.15]
[1753986300871,5.665,176.53,176.5,3.15]
[1753986301067,8.985,176.53,176.49,3.15]
[1753986301268,3.32,176.53,176.49,3.15]
[1753986301464,5.6652,176.53,176.51,3.15]
[1753986302079,3.32,176.56,176.51,3.15]
[1753986302268,3.32,176.56,176.5,6.59546698]
[1753986302563,3.32,176.56,176.52,3.15]
[1753986302767,5.6653,176.53,176.48,6.59546698]
[1753986302966,3.32,176.52,176.49,3.15]
[1753986303363,8.9855,176.52,176.49,3.15]
[1753986303561,3.32,176.51,176.49,3.15]
[1753986303759,3.32,176.51,176.5,3.15]
[1753986304176,3.32,176.53,176.5,3.15]
[1753986304470,3.32,176.52,176.51,3.15]
[1753986304670,8.9853,176.52,176.51,3.15]
[1753986305069,3.32,176.56,176.51,3.15]
[1753986305368,3.32,176.56,176.5,6.59546698]
[1753986305572,3.32,176.56,176.52,3.15]
[1753986305769,5.6645,176.55,176.54,3.15]
[1753986305976,8.9845,176.55,176.54,3.15]
[1753986306177,3.32,176.55,176.54,3.15]
[1753986306467,109.94,176.57,176.5,6.59546698]
[1753986306468,3.32,176.56,176.5,6.59546698]
[1753986306774,3.32,176.56,176.52,3.15]
[1753986307275,3.32,176.53,176.52,3.15]
[1753986307467,3.32,176.55,176.53,3.15]
[1753986307667,3.32,176.55,176.5,6.59546698]
[1753986307668,113.26,176.57,176.5,6.59546698]
[1753986307870,113.26,176.57,176.55,3.15]
[1753986308067,3.32,176.56,176.55,3.15]
[1753986308264,8.984,176.56,176.55,3.15]
[1753986308567,3.32,176.55,176.51,3.15]
[1753986309067,109.94,176.57,176.51,3.15]
[1753986309271,3.32,176.54,176.51,3.15]
[1753986309771,3.32,176.54,176.5,6.59546698]
[1753986309971,3.32,176.54,176.53,3.15]
[1753986310566,5.6646,176.54,176.5,6.59546698]
[1753986310775,3.32,176.53,176.51,3.15]
[1753986310971,3.32,176.53,176.52,3.15]
[1753986312376,3.32,176.55,176.53,3.15]
[1753986312583,3.32,176.54,176.53,3.15]
[1753986313677,109.94,176.57,176.52,6.59546698]
[1753986313882,113.26,176.57,176.53,3.15]
[1753986314072,118.9239,176.57,176.53,3.15]
[1753986314881,8.9841,176.56,176.53,3.15]
[1753986315075,3.32,176.55,176.5,6.59546698]
[1753986315283,3.32,176.56,176.47,8.8167]
[1753986315578,3.32,176.5,176.44,3.15]
[1753986315773,5.6675,176.46,176.44,3.15]
[1753986315972,3.32,176.48,176.44,3.15]
[1753986316170,3.32,176.47,176.45,3.15]
[1753986316381,8.9871,176.47,176.46,3.15]
[1753986316572,3.32,176.47,176.46,3.15]
[1753986316778,3.32,176.49,176.42,7.19861441]
[1753986316987,3.32,176.49,176.45,3.15]
[1753986317289,3.32,176.48,176.46,3.15]
[1753986317492,3.32,176.48,176.47,3.15]
[1753986320394,3.32,176.53,176.47,6.59762181]
[1753986320594,109.84,176.54,176.48,3.15]
[1753986320791,113.16,176.55,176.49,6.59762181]
[1753986320990,109.84,176.55,176.49,6.59762181]
[1753986321192,3.32,176.51,176.5,3.15]
[1753986321981,5.6651,176.53,176.5,3.15]
[1753986322188,3.32,176.52,176.51,3.15]
[1753986322383,109.84,176.55,176.51,3.15]
[1753986322586,3.32,176.54,176.51,3.15]
[1753986322782,3.32,176.52,176.51,3.15]
[1753986323285,5.6653,176.53,176.51,3.15]
[1753986323490,8.9853,176.53,176.51,3.15]
[1753986323690,8.9853,176.53,176.47,6.59762181]
[1753986323892,8.9853,176.53,176.49,6.59762181]
[1753986324191,3.32,176.52,176.5,3.15]
[1753986324390,3.32,176.51,176.5,3.15]
[1753986326188,3.32,176.5,176.48,9.74762181]
[1753986326393,3.32,176.5,176.49,3.15]
[1753986327297,3.32,176.49,176.47,3.15]
[1753986327494,3.32,176.49,176.48,3.15]
[1753986327894,3.32,176.54,176.48,3.15]
[1753986328097,3.32,176.52,176.49,3.15]
[1753986328297,3.28,176.54,176.49,3.15]
[1753986329201,5.6655,176.52,176.49,3.15]
[1753986329701,3.28,176.5,176.49,3.15]
[1753986330698,5.665,176.53,176.48,5.6664]
[1753986330902,3.28,176.51,176.5,3.01]
[1753986333500,113.06,176.54,176.5,3.01]
[1753986333704,118.7249,176.54,176.5,3.01]
[1753986333904,115.4449,176.54,176.5,3.01]
[1753986334106,118.7249,176.54,176.5,3.01]
[1753986334508,3.28,176.52,176.48,6.59762181]
[1753986334708,3.28,176.52,176.51,3.01]
[1753986335209,109.78,176.56,176.51,3.01]
[1753986335410,3.28,176.55,176.51,3.01]
[1753986335607,109.78,176.56,176.5,6.59762181]
[1753986335906,3.28,176.56,176.52,6.59762181]
[1753986336211,3.28,176.57,176.55,3.01]
[1753986336404,3.28,176.57,176.56,3.01]
[1753986336610,8.9439,176.57,176.56,3.01]
[1753986336914,3.28,176.58,176.57,3.01]
[1753986337109,8.9434,176.58,176.57,3.01]
[1753986337305,3.28,176.58,176.57,3.01]
[1753986338108,3.28,176.57,176.55,3.01]
[1753986338705,3.28,176.57,176.56,3.01]
[1753986338901,115.4231,176.59,176.56,3.01]
[1753986339107,4.63792764,176.65,176.59,3.01]
[1753986339307,3.28,176.62,176.61,3.01]
[1753986339608,109.74,176.64,176.62,3.01]
[1753986339814,4.03498552,176.63,176.61,4.04310025]
[1753986340011,109.74,176.64,176.61,4.04310025]
[1753986340308,109.74,176.64,176.49,59.37540025]
[1753986340309,7.31348127,176.63,176.59,4.04310025]
[1753986340506,3.28,176.62,176.59,7.05310025]
[1753986341014,3.28,176.61,176.59,7.05310025]
[1753986341209,3.28,176.61,176.6,3.01]
[1753986342413,109.74,176.64,176.57,4.04310025]
[1753986342639,3.28,176.62,176.59,3.01]
[1753986342912,3.28,176.62,176.58,3.01]
[1753986343120,109.74,176.64,176.58,3.01]
[1753986343406,3.28,176.57,176.56,3.01]
[1753986343609,109.7,176.63,176.56,3.01]
[1753986343812,3.28,176.61,176.6,3.01]
[1753986345415,109.7,176.63,176.6,3.01]
[1753986345613,109.7,176.63,176.61,3.01]
[1753986345614,3.28,176.62,176.61,3.01]
[1753986345917,3.28,176.62,176.58,9.70640025]
[1753986346113,3.28,176.61,176.6,3.01]
[1753986346309,3.28,176.62,176.59,3.01]
[1753986346514,3.28,176.62,176.57,3.01]
[1753986347217,3.28,176.58,176.57,3.01]
[1753986348018,3.28,176.62,176.57,3.01]
[1753986348213,109.7,176.63,176.57,3.01]
[1753986348214,3.28,176.61,176.57,3.01]
[1753986348418,109.7,176.63,176.57,3.01]
[1753986348618,3.28,176.6,176.58,3.01]
[1753986348819,5.6631,176.59,176.58,3.01]
[1753986349019,3.28,176.6,176.59,3.01]
[1753986349417,4.67849679,176.69,176.6,3.01]
[1753986349622,3.28,176.65,176.62,3.01]
[1753986349921,8.9412,176.65,176.62,3.01]
[1753986350320,5.6612,176.65,176.64,3.01]
[1753986350717,5.6609,176.66,176.65,3.01]
[1753986350915,109.64,176.68,176.65,4.04310025]
[1753986351117,109.64,176.68,176.67,3.01]
[1753986351721,115.3001,176.68,176.67,3.01]
[1753986351916,3.28,176.69,176.67,3.01]
[1753986352116,109.62,176.73,176.67,3.01]
[1753986352316,3.28,176.7,176.68,3.01]
[1753986352716,3.28,176.72,176.69,3.01]
[1753986352921,109.62,176.73,176.68,3.01]
[1753986353220,109.62,176.73,176.58,48.04310025]
[1753986353221,3.28,176.69,176.65,7.05310025]
[1753986353523,3.28,176.69,176.62,3.01]
[1753986353524,3.28,176.67,176.62,3.01]
[1753986354321,3.28,176.67,176.63,3.01]
[1753986354721,8.9413,176.65,176.63,3.01]
[1753986355021,3.28,176.64,176.63,3.01]
[1753986356025,5.6613,176.65,176.6,9.70570025]
[1753986356224,8.9413,176.65,176.64,3.01]
[1753986357823,3.28,176.65,176.64,3.01]
[1753986358023,3.28,176.67,176.65,3.01]
[1753986358325,3.28,176.66,176.63,3.28]
[1753986358522,3.28,176.66,176.6,4.04310025]
[1753986358523,8.8212,176.65,176.64,3.28]
[1753986358724,3.16,176.65,176.64,3.28]
[1753986360625,8.8211,176.65,176.64,3.28]
[1753986360826,5.6611,176.65,176.6,9.70570025]
[1753986361025,3.16,176.64,176.63,3.28]
[1753986361423,3.16,176.64,176.6,4.04310025]
[1753986361629,3.16,176.66,176.6,4.04310025]
[1753986361828,3.16,176.66,176.63,3.28]
[1753986362027,3.16,176.66,176.61,3.28]
[1753986362422,3.16,176.65,176.6,4.04310025]
[1753986362623,3.16,176.64,176.61,3.28]
[1753986363229,8.8215,176.64,176.61,3.28]
[1753986363527,3.16,176.64,176.61,3.28]
[1753986364627,8.8215,176.64,176.61,3.28]
[1753986365023,3.16,176.64,176.6,4.04310025]
[1753986365224,3.16,176.62,176.59,4.04310025]
[1753986365427,3.16,176.61,176.6,3.28]
[1753986365929,5.6623,176.62,176.6,3.28]
[1753986366127,8.8223,176.62,176.61,3.28]
[1753986366333,3.16,176.62,176.61,3.28]
[1753986366533,3.16,176.63,176.62,3.28]
[1753986367234,3.16,176.62,176.61,3.28]
[1753986368130,109.6,176.68,176.62,3.28]
[1753986368131,3.16,176.65,176.62,3.28]
[1753986368335,3.16,176.63,176.62,3.28]
[1753986369136,3.16,176.65,176.62,3.28]
[1753986369437,3.16,176.65,176.62,5.662]
[1753986369638,3.16,176.65,176.64,3.28]
[1753986370543,3.16,176.66,176.65,3.28]
[1753986372030,112.6,176.68,176.65,3.28]
[1753986372235,109.44,176.68,176.65,3.28]
[1753986372530,3.16,176.68,176.65,8.9409]
[1753986372739,3.16,176.68,176.67,3.28]
[1753986373641,109.42,176.71,176.67,3.28]
[1753986373934,3.16,176.7,176.67,3.28]
[1753986374140,3.16,176.69,176.68,3.28]
[1753986374533,5.6597,176.7,176.68,3.28]
[1753986374735,109.42,176.71,176.59,3.28]
[1753986374938,109.42,176.71,176.7,3.28]
[1753986375140,115.0792,176.71,176.7,3.28]
[1753986375344,118.2392,176.71,176.7,3.28]
[1753986376436,112.58,176.71,176.7,3.28]
[1753986377035,3.16,176.68,176.66,7.32310025]
[1753986377242,3.16,176.68,176.67,3.28]
[1753986377737,3.16,176.7,176.67,3.28]
[1753986377945,3.16,176.69,176.66,4.04310025]
[1753986378138,3.16,176.69,176.68,3.28]
[1753986378845,8.8199,176.69,176.68,3.28]
[1753986379544,3.16,176.67,176.66,3.28]
[1753986379743,109.42,176.71,176.65,3.28]
[1753986379744,3.16,176.66,176.65,3.28]
[1753986380947,3.16,176.7,176.67,3.28]
[1753986381143,3.16,176.7,176.67,4.04310025]
[1753986381342,3.16,176.7,176.69,3.28]
[1753986383038,109.34,176.72,176.69,3.28]
[1753986383240,109.34,176.72,176.71,7.32310025]
[1753986383442,112.46,176.75,176.71,7.32310025]
[1753986383639,3.16,176.78,176.73,4.04310025]
[1753986383946,5.6581,176.75,176.71,4.04310025]
[1753986384253,3.16,176.73,176.71,7.32310025]
[1753986384452,3.16,176.72,176.71,7.32310025]
[1753986384856,3.16,176.77,176.72,3.28]
[1753986385049,7.19538606,176.76,176.74,3.28]
[1753986385246,4.03538606,176.75,176.74,4.04310025]
[1753986385450,112.46,176.78,176.74,9.70110025]
[1753986385746,4.03272473,176.77,176.75,3.28]
[1753986385953,4.03272473,176.76,176.75,3.28]
[1753986386352,114.9572,176.78,176.74,9.70130025]
[1753986386551,3.16,176.77,176.76,3.28]
[1753986387148,3.16,176.77,176.73,4.04310025]
[1753986387456,3.16,176.76,176.74,3.28]
[1753986387754,3.16,176.76,176.75,3.28]
[1753986389053,8.8176,176.76,176.75,3.28]
[1753986389254,3.13,176.77,176.71,7.09310025]
[1753986389454,3.13,176.77,176.71,3.05]
[1753986389645,5.6589,176.72,176.69,7.09310025]
[1753986389846,5.6589,176.72,176.62,44.0]
[1753986389847,4.67092614,176.8,176.71,4.04310025]
[1753986390051,3.13,176.78,176.76,4.04310025]
[1753986390249,385.35092614,176.82,176.76,4.04310025]
[1753986390458,4.02509755,176.81,176.78,7.09310025]
[1753986390655,4.02509755,176.8,176.79,3.05]
[1753986391054,109.22,176.81,176.79,3.05]
[1753986391256,109.22,176.81,176.8,3.05]
[1753986391456,112.35,176.81,176.8,3.05]
[1753986391752,5.6567,176.79,176.76,4.04310025]
[1753986391953,3.13,176.77,176.76,7.09310025]
[1753986392560,5.6565,176.8,176.78,3.05]
[1753986392859,8.7865,176.8,176.79,3.05]
[1753986393652,109.22,176.81,176.79,3.05]
[1753986394255,3.13,176.82,176.81,3.05]
[1753986395260,8.7857,176.82,176.8,4.04310025]
[1753986395457,3.13,176.81,176.8,4.04310025]
[1753986396053,3.13,176.81,176.8,7.09310025]
[1753986396556,117.9455,176.83,176.8,7.09310025]
[1753986396761,3.13,176.82,176.81,3.05]
[1753986397066,3.13,176.84,176.82,3.05]
[1753986397257,109.12,176.85,176.82,3.05]
[1753986397453,3.13,176.83,176.82,3.05]
[1753986399958,3.13,176.82,176.8,7.09310025]
[1753986400166,3.13,176.81,176.8,7.09310025]
[1753986400359,5.6552,176.84,176.81,3.05]
[1753986400767,3.13,176.82,176.81,3.05]
[1753986401462,5.6552,176.84,176.81,3.05]
[1753986401655,3.13,176.83,176.82,3.05]
[1753986401865,8.7854,176.83,176.82,3.05]
[1753986402067,3.13,176.82,176.81,3.05]
[1753986404873,3.13,176.82,176.8,4.04310025]
[1753986404874,3.13,176.84,176.82,3.05]
[1753986405172,3.13,176.83,176.8,4.04310025]
[1753986405372,3.13,176.82,176.81,3.05]
[1753986406367,3.13,176.84,176.81,5.656]
[1753986406568,3.13,176.84,176.83,3.05]
[1753986407171,114.6549,176.85,176.83,3.05]
[1753986407476,5.6552,176.84,176.82,4.04310025]
[1753986407675,3.13,176.83,176.82,7.09310025]
[1753986408067,8.7854,176.83,176.82,3.05]
[1753986408274,5.6554,176.83,176.8,7.09310025]
[1753986408581,3.13,176.81,176.8,7.09310025]
[1753986408775,3.13,176.81,176.8,3.05]
[1753986409479,3.13,176.8,176.76,3.05]
[1753986409965,3.13,176.77,176.76,3.05]
[1753986411272,8.7873,176.77,176.76,3.05]
[1753986411479,3.13,176.77,176.72,3.05]
[1753986411670,4.04310025,176.78,176.72,3.05]
[1753986411671,3.13,176.74,176.72,3.05]
[1753986411876,3.13,176.74,176.73,3.05]
[1753986412379,3.13,176.74,176.71,3.05]
[1753986412572,3.13,176.73,176.72,3.05]
[1753986414370,3.13,176.75,176.71,3.05]
[1753986414776,8.788,176.75,176.71,8.709]
[1753986414976,3.13,176.75,176.72,3.05]
[1753986415378,5.6581,176.75,176.71,5.6591]
[1753986415678,3.13,176.74,176.73,3.05]
[1753986416068,8.7883,176.74,176.73,3.05]
[1753986416679,3.13,176.74,176.73,3.05]
[1753986417678,3.13,176.79,176.73,3.05]
[1753986417878,8.7872,176.78,176.75,3.05]
[1753986418078,3.13,176.78,176.75,3.05]
[1753986418278,3.11,176.77,176.76,3.24]
[1753986419183,3.11,176.74,176.73,3.24]
[1753986419383,3.11,176.76,176.73,3.24]
[1753986419779,3.11,176.76,176.74,3.24]
[1753986419983,3.11,176.75,176.74,3.24]
[1753986420387,3.11,176.74,176.73,3.24]
[1753986420682,3.11,176.74,176.63,88.91035183]
[1753986420882,3.11,176.72,176.67,3.24]
[1753986421090,3.11,176.72,176.69,3.24]
[1753986421289,111.99,176.73,176.7,5.6593]
[1753986421490,3.11,176.72,176.69,3.24]
[1753986421684,3.11,176.71,176.66,3.24]
[1753986421892,5.6597,176.7,176.67,3.24]
[1753986422084,108.88,176.73,176.66,3.24]
[1753986422085,3.11,176.69,176.66,3.24]
[1753986422486,3.11,176.7,176.67,5.6603]
[1753986422689,4.04310025,176.71,176.66,3.24]
[1753986422889,3.11,176.7,176.64,3.24]
[1753986423083,3.11,176.7,176.64,4.04310025]